{"text_format":"1","workbook":"xlsx","n_sheets":2,"sheets":["Charts","Master"],"not_rendered":{"charts":4,"images":0,"macros":1,"external_links":0,"defined_names":0,"comments":0,"pivot_tables":0},"unopened":[],"bounds":{"document_bytes":16777216,"sheet_cells":100000,"rows_first":2000,"rows_last":500,"rows_between":2000,"halvings":0,"cell_chars":16384,"cell_head_chars":4096},"cells_cut":0,"cells_raw":0,"read":"whole","date_system":"1900"}

{"sheet":"Charts","index":0,"n_rows":9,"n_cols":13,"rows_kept":9,"cut":false,"hidden":false,"merged":[]}
["Level 1","Total Extended Price",null,"Level 1","QTY",null,null,null,"Level 2","Total Extended Price",null,"Level 2","QTY"]
["Distal Extremities",{"$f":"SUMIF(Table1[Level1],Table26[[#This Row],[Level 1]],Table1[Extended Price])","v":1558.7000000000003},null,"Distal Extremities",{"$f":"SUMIF(Table1[Level1],Table25[[#This Row],[Level 1]],Table1[Quantity])","v":16},null,null,null,"Instruments",{"$f":"SUMIF(Table1[Level2],Table37[[#This Row],[Level 2]],Table1[Extended Price])","v":4713.5499999999993},null,"Instruments",{"$f":"SUMIF(Table1[Level2],Table38[[#This Row],[Level 2]],Table1[Quantity])","v":38}]
["Other",{"$f":"SUMIF(Table1[Level1],Table26[[#This Row],[Level 1]],Table1[Extended Price])","v":2875},null,"Shoulder",{"$f":"SUMIF(Table1[Level1],Table25[[#This Row],[Level 1]],Table1[Quantity])","v":14},null,null,null,"Other",{"$f":"SUMIF(Table1[Level2],Table37[[#This Row],[Level 2]],Table1[Extended Price])","v":2875},null,"Implants",{"$f":"SUMIF(Table1[Level2],Table38[[#This Row],[Level 2]],Table1[Quantity])","v":31}]
["Imaging & Resection",{"$f":"SUMIF(Table1[Level1],Table26[[#This Row],[Level 1]],Table1[Extended Price])","v":-2833.95},null,"Knee & Hip",{"$f":"SUMIF(Table1[Level1],Table25[[#This Row],[Level 1]],Table1[Quantity])","v":11},null,null,null,"Implants",{"$f":"SUMIF(Table1[Level2],Table37[[#This Row],[Level 2]],Table1[Extended Price])","v":2246.3500000000004},null,"Other",{"$f":"SUMIF(Table1[Level2],Table38[[#This Row],[Level 2]],Table1[Quantity])","v":11}]
["Shoulder",{"$f":"SUMIF(Table1[Level1],Table26[[#This Row],[Level 1]],Table1[Extended Price])","v":1901.15},null,"Other",{"$f":"SUMIF(Table1[Level1],Table25[[#This Row],[Level 1]],Table1[Quantity])","v":11},null,null,null,"Equipment",{"$f":"SUMIF(Table1[Level2],Table37[[#This Row],[Level 2]],Table1[Extended Price])","v":-2833.95},null,"Equipment",{"$f":"SUMIF(Table1[Level2],Table38[[#This Row],[Level 2]],Table1[Quantity])","v":-7}]
["Knee & Hip",{"$f":"SUMIF(Table1[Level1],Table26[[#This Row],[Level 1]],Table1[Extended Price])","v":808.55},null,"Imaging & Resection",{"$f":"SUMIF(Table1[Level1],Table25[[#This Row],[Level 1]],Table1[Quantity])","v":-7},null,null,null,"Suture",{"$f":"SUMIF(Table1[Level2],Table37[[#This Row],[Level 2]],Table1[Extended Price])","v":0},null,"Suture",{"$f":"SUMIF(Table1[Level2],Table38[[#This Row],[Level 2]],Table1[Quantity])","v":0}]
["Arthroplasty",{"$f":"SUMIF(Table1[Level1],Table26[[#This Row],[Level 1]],Table1[Extended Price])","v":2691.5},null,"Arthroplasty",{"$f":"SUMIF(Table1[Level1],Table25[[#This Row],[Level 1]],Table1[Quantity])","v":28},null,null,null,"Consumables",{"$f":"SUMIF(Table1[Level2],Table37[[#This Row],[Level 2]],Table1[Extended Price])","v":33.25},null,"Consumables",{"$f":"SUMIF(Table1[Level2],Table38[[#This Row],[Level 2]],Table1[Quantity])","v":1}]
["Capital Equipment",{"$f":"SUMIF(Table1[Level1],Table26[[#This Row],[Level 1]],Table1[Extended Price])","v":33.25},null,"Capital Equipment",{"$f":"SUMIF(Table1[Level1],Table25[[#This Row],[Level 1]],Table1[Quantity])","v":1},null,null,null,"Total",{"$f":"SUBTOTAL(109,Table37[Total Extended Price])","v":7034.2},null,"Total",{"$f":"SUBTOTAL(109,Table38[QTY])","v":74}]
["Total",{"$f":"SUBTOTAL(109,Table26[Total Extended Price])","v":7034.2000000000007},null,"Total",{"$f":"SUBTOTAL(109,Table25[QTY])","v":74}]

{"sheet":"Master","index":1,"n_rows":159,"n_cols":21,"rows_kept":159,"cut":false,"hidden":false,"merged":[]}
["Region (Number)","Order Type","Order Description","Order","Invoice","Line No","Date","Purchase Order","Part","Description","Level1","Level2","Level3","Level4","Level5","Quantity","Discounted Unit Price","Extended Price","Credit terms","Serial number","Batch Number"]
["D00","ZDST","Arthrex Distributor",507368,90617156,10,{"$f":"TEXT(\"2/1/2016\",\"mm/dd/yyyy\")","v":"02/01/2016"},"D005R-160201-79384","AR-9260-47","KOLBEL RETRTR BLADE,36MMX 68MMBLNT","Arthroplasty","Instruments","Shoulder Arthroplasty & Fracture","Univers","Other",2,42,84,"NET 15",null,"\t45551540"]
["D00","ZDST","Arthrex Distributor",507368,90617156,20,"02/01/2016","D005R-160201-79384","AR-9260-48","HOHMANN RETRTR,9.75\" LGX 19MM WD BL","Arthroplasty","Instruments","Shoulder Arthroplasty & Fracture","Univers","Other",1,87.5,87.5,"NET 15",null,"\t76621526"]
["D00","ZDST","Arthrex Distributor",507368,90617156,30,"02/01/2016","D005R-160201-79384","AR-9260-50","BROWNE DELTOID RETRACTOR","Arthroplasty","Instruments","Shoulder Arthroplasty & Fracture","Univers","Other",1,126,126,"NET 15",null,"\t45551537"]
["D00","ZDST","Arthrex Distributor",507368,90617156,40,"02/01/2016","D005R-160201-79384","AR-9260-52","FUKUDA RETRTR,7 1/2\"X32MMX 81MMT-HN","Arthroplasty","Instruments","Shoulder Arthroplasty & Fracture","Univers","Other",1,78.75,78.75,"NET 15",null,"\t76621526"]
["D00","ZDST","Arthrex Distributor",507368,90617156,50,"02/01/2016","D005R-160201-79384","AR-9260C-53","SHOULDER ARTHROPLASTY RETRACTOR CAS","Arthroplasty","Instruments","Shoulder Arthroplasty & Fracture","Univers","Other",1,542.5,542.5,"NET 15",null,"\t18523.001"]
["D00","ZDST","Arthrex Distributor",507368,90617156,60,"02/01/2016","D005R-160201-79384","AR-9260-30","THIN GLENOID RETRACTOR, NARROW TIP","Arthroplasty","Instruments","Shoulder Arthroplasty & Fracture","Univers","Other",1,96.25,96.25,"NET 15",null,"\t8001549"]
["D00","ZDST","Arthrex Distributor",507368,90617156,70,"02/01/2016","D005R-160201-79384","AR-9260-31","THIN GLENOID RETRACTOR, WIDE TIP","Arthroplasty","Instruments","Shoulder Arthroplasty & Fracture","Univers","Other",1,96.25,96.25,"NET 15",null,"\t8001542"]
["D00","ZDST","Arthrex Distributor",507368,90617156,80,"02/01/2016","D005R-160201-79384","AR-9260-32","FUKUDA RETRTR,7 1/2\"X38MMX 81MMT-HN","Arthroplasty","Instruments","Shoulder Arthroplasty & Fracture","Univers","Other",1,78.75,78.75,"NET 15",null,"\t76621521"]
["D00","ZDST","Arthrex Distributor",507368,90617156,90,"02/01/2016","D005R-160201-79384","AR-9260-33","HOHMANN RETRTR,8.5\" LNG,10MM BLADE","Arthroplasty","Instruments","Shoulder Arthroplasty & Fracture","Univers","Other",2,52.5,105,"NET 15",null,"\t45551540"]
["D00","ZDST","Arthrex Distributor",507368,90617156,100,"02/01/2016","D005R-160201-79384","AR-9260-34","HOHMANN RETRTR 9 1/2\" LNG,17MM PNTD","Arthroplasty","Instruments","Shoulder Arthroplasty & Fracture","Univers","Other",1,52.5,52.5,"NET 15",null,"\t45551540"]
["D00","ZDST","Arthrex Distributor",507368,90617156,110,"02/01/2016","D005R-160201-79384","AR-9260-35","HOHMANN RETRTR,10 1/2\" LGX 24MM BLD","Arthroplasty","Instruments","Shoulder Arthroplasty & Fracture","Univers","Other",1,61.25,61.25,"NET 15",null,"\t76621521"]
["D00","ZDST","Arthrex Distributor",507368,90617156,120,"02/01/2016","D005R-160201-79384","AR-9260-36","DARRACH ELEVTR,10\"LX5/8\"W,BLNT W SE","Arthroplasty","Instruments","Shoulder Arthroplasty & Fracture","Univers","Other",1,61.25,61.25,"NET 15",null,"\t45551537"]
["D00","ZDST","Arthrex Distributor",507368,90617156,130,"02/01/2016","D005R-160201-79384","AR-9260-37","DARRACH ELEVTR,14\" LGX 1\" WD,BLNT W","Arthroplasty","Instruments","Shoulder Arthroplasty & Fracture","Univers","Other",1,70,70,"NET 15",null,"\t45551540"]
["D00","ZDST","Arthrex Distributor",507368,90617156,140,"02/01/2016","D005R-160201-79384","AR-9260-38","VOLKMANN BONE HK,9\" LNGX 20MM DEEP,","Arthroplasty","Instruments","Shoulder Arthroplasty & Fracture","Univers","Other",1,43.75,43.75,"NET 15",null,"\t76621517"]
["D00","ZDST","Arthrex Distributor",507368,90617156,150,"02/01/2016","D005R-160201-79384","AR-9260-40","RICHARDSON RETRTR,1\"WX 1.5\"DX9.5\"L","Arthroplasty","Instruments","Shoulder Arthroplasty & Fracture","Univers","Other",1,52.5,52.5,"NET 15",null,"\t76621517"]
["D00","ZDST","Arthrex Distributor",507368,90617156,151,"02/01/2016","D005R-160201-79384","AR-9260-40","RICHARDSON RETRTR,1\"WX 1.5\"DX9.5\"L","Arthroplasty","Instruments","Shoulder Arthroplasty & Fracture","Univers","Other",1,52.5,52.5,"NET 15",null,"\t45551540"]
["D00","ZDST","Arthrex Distributor",507368,90617156,160,"02/01/2016","D005R-160201-79384","AR-9260-44","GELPI RETRACTOR, 7.25\", SHARP","Arthroplasty","Instruments","Shoulder Arthroplasty & Fracture","Univers","Other",1,96.25,96.25,"NET 15",null,"\t45551531"]
["D00","ZDST","Arthrex Distributor",507368,90617156,170,"02/01/2016","D005R-160201-79384","AR-9260-45","KOLBEL RETRACTOR, 8\" LONG, RING HAN","Arthroplasty","Instruments","Shoulder Arthroplasty & Fracture","Univers","Other",1,192.5,192.5,"NET 15",null,"\t45551538"]
["D00","ZDST","Arthrex Distributor",507368,90617156,180,"02/01/2016","D005R-160201-79384","AR-9260-46","KOLBEL RETRTR BLADE,36MMX 36MMBLNT","Arthroplasty","Instruments","Shoulder Arthroplasty & Fracture","Univers","Other",2,42,84,"NET 15",null,"\t45551540"]
["D00","ZDST","Arthrex Distributor",507433,90617157,10,"02/01/2016","020115lab","DS-012","ARTHREX SHOULDER COMPLETE","Other","Other","Promo Items","Other","Other",2,325,650,"NET 15",null,"\t10017440"]
["D00","ZDST","Arthrex Distributor",507433,90617157,11,"02/01/2016","020115lab","DS-012","ARTHREX SHOULDER COMPLETE","Other","Other","Promo Items","Other","Other",1,325,325,"NET 15",null,"\t10017440"]
["D00","ZDST","Arthrex Distributor",507433,90617157,20,"02/01/2016","020115lab","DS-015","ARTHREX SOFT KNEE","Other","Other","Promo Items","Other","Other",3,160,480,"NET 15",null,"\t10026806"]
["D00","CR","Arthrex Credit Memo",60024110,90617158,10,"02/01/2016","JAN INST CR","AR-4160-35","DRILL BIT, 3.5 MM","Distal Extremities","Instruments","Device Specific Instruments","Forefoot Instruments","TRIMit",-1,19.75,-19.75,"NET 15",null,"\t041534"]
["D00","CR","Arthrex Credit Memo",60024110,90617158,20,"02/01/2016","JAN INST CR","AR-4160-35","DRILL BIT, 3.5 MM","Distal Extremities","Instruments","Device Specific Instruments","Forefoot Instruments","TRIMit",-1,19.75,-19.75,"NET 15",null,"\t041532"]
["D00","CR","Arthrex Credit Memo",60024110,90617158,30,"02/01/2016","JAN INST CR","AR-4160-35","DRILL BIT, 3.5 MM","Distal Extremities","Instruments","Device Specific Instruments","Forefoot Instruments","TRIMit",-1,19.75,-19.75,"NET 15",null,"\t041532"]
["D00","CR","Arthrex Credit Memo",60024110,90617158,40,"02/01/2016","JAN INST CR","AR-8737-35","2.7MM DRILL BIT, CMP FT, CALIBRATED","Distal Extremities","Instruments","Device Specific Instruments","Compression Screws","Metal Compression Screws",-1,68.25,-68.25,"NET 15",null,"\t031532"]
["D00","CR","Arthrex Credit Memo",60024110,90617158,50,"02/01/2016","JAN INST CR","AR-8916-06","2.5MM DRILL BIT, CALIBRATED","Distal Extremities","Instruments","Hand & Wrist","Distal Radius","Other",-1,23.8,-23.8,"NET 15",null,"\t1391534"]
["D00","CR","Arthrex Credit Memo",60024110,90617158,60,"02/01/2016","JAN INST CR","AR-8943-02","DRILL BIT, CANNULATED, 2.6MM","Distal Extremities","Instruments","Device Specific Instruments","Hindfoot & Ankle","Ankle Fracture",-1,61.25,-61.25,"NET 15",null,"\t041349"]
["D00","CR","Arthrex Credit Memo",60024110,90617158,70,"02/01/2016","JAN INST CR","AR-8943-02","DRILL BIT, CANNULATED, 2.6MM","Distal Extremities","Instruments","Device Specific Instruments","Hindfoot & Ankle","Ankle Fracture",-1,61.25,-61.25,"NET 15",null,"\t041451"]
["D00","CR","Arthrex Credit Memo",60024110,90617158,80,"02/01/2016","JAN INST CR","AR-8943-16","2.0MM DRILL BIT, CALIBRATED","Distal Extremities","Instruments","Device Specific Instruments","Hindfoot & Ankle","Ankle Fracture",-1,33.25,-33.25,"NET 15",null,"\t031536"]
["D00","CR","Arthrex Credit Memo",60024110,90617158,90,"02/01/2016","JAN INST CR","AR-8943-16","2.0MM DRILL BIT, CALIBRATED","Distal Extremities","Instruments","Device Specific Instruments","Hindfoot & Ankle","Ankle Fracture",-1,33.25,-33.25,"NET 15",null,"\t031542"]
["D00","CR","Arthrex Credit Memo",60024110,90617158,100,"02/01/2016","JAN INST CR","AR-8943-30","2.5MM DRILL BIT","Distal Extremities","Instruments","Device Specific Instruments","Hindfoot & Ankle","Ankle Fracture",-1,29.75,-29.75,"NET 15",null,"\t1391536"]
["D00","CR","Arthrex Credit Memo",60024110,90617158,110,"02/01/2016","JAN INST CR","AR-8943-30","2.5MM DRILL BIT","Distal Extremities","Instruments","Device Specific Instruments","Hindfoot & Ankle","Ankle Fracture",-1,29.75,-29.75,"NET 15",null,"\t1391533"]
["D00","CR","Arthrex Credit Memo",60024110,90617158,120,"02/01/2016","JAN INST CR","AR-8943-30","2.5MM DRILL BIT","Distal Extremities","Instruments","Device Specific Instruments","Hindfoot & Ankle","Ankle Fracture",-1,29.75,-29.75,"NET 15",null,"\t1391529"]
["D00","CR","Arthrex Credit Memo",60024110,90617158,130,"02/01/2016","JAN INST CR","AR-8943-42","2.5MM DRILL BIT, CALIBRATED","Distal Extremities","Instruments","Device Specific Instruments","Hindfoot & Ankle","Ankle Fracture",-1,29.75,-29.75,"NET 15",null,"\t031534"]
["D00","CR","Arthrex Credit Memo",60024110,90617158,140,"02/01/2016","JAN INST CR","AR-8943-42","2.5MM DRILL BIT, CALIBRATED","Distal Extremities","Instruments","Device Specific Instruments","Hindfoot & Ankle","Ankle Fracture",-1,29.75,-29.75,"NET 15",null,"\t031529"]
["D00","RE","Returns",60023414,90617159,10,"02/01/2016","D005R-160113-52166","AR-8850SC","C-LINE ENDOS CARPAL TUNL REL SCOPE","Distal Extremities","Instruments","Hand & Wrist","Endoscopic CTR","Other",-2,210,-420,"NET 15",null,"\t4500005588"]
["D00","ZBKR","Arthrex Cons Returns",60024231,90617160,10,"02/01/2016","LOT SWAP 12716RH","AR-8934BCNF","SUTR ANCH,BIO-COMP S-TAK SM JNT","Distal Extremities","Implants","Anchors","SutureTaks & FasTaks","Composite Anchors",-2,325,-650,"NET 15",null,"\t1251708"]
["D00","ZBKR","Arthrex Cons Returns",60024231,90617160,20,"02/01/2016","LOT SWAP 12716RH","AR-1927BF","SUTR ANCH,BIOCRKSCRW,FT,VENT","Shoulder","Implants","Corkscrews","Bio Anchors","5.5mm",-3,285,-855,"NET 15",null,"\t400272"]
["D00","ZBKE","Arthrex Consig Issue",506051,90617182,10,"02/01/2016","LOT SWAP 12716RH","AR-8934BCNF","SUTR ANCH,BIO-COMP S-TAK SM JNT","Distal Extremities","Implants","Anchors","SutureTaks & FasTaks","Composite Anchors",2,325,650,"NET 15",null,"\t1192127"]
["D00","ZBKE","Arthrex Consig Issue",506051,90617182,20,"02/01/2016","LOT SWAP 12716RH","AR-1927BF","SUTR ANCH,BIOCRKSCRW,FT,VENT","Shoulder","Implants","Corkscrews","Bio Anchors","5.5mm",3,285,855,"NET 15",null,"\t1144997"]
["D00","ZDST","Arthrex Distributor",511144,90621405,10,{"$f":"TEXT(\"2/2/2016\",\"mm/dd/yyyy\")","v":"02/02/2016"},"D005R-160202-11897","AR-8943-02","DRILL BIT, CANNULATED, 2.6MM","Distal Extremities","Instruments","Device Specific Instruments","Hindfoot & Ankle","Ankle Fracture",4,61.25,245,"NET 15",null,"\t031546"]
["D00","ZDST","Arthrex Distributor",511144,90621405,20,"02/02/2016","D005R-160202-11897","AR-8945-30C","CANNULATED DRILL BIT, 3.0MM","Distal Extremities","Instruments","Device Specific Instruments","Screws","4.5/5.5/6.7 Screws",1,61.25,61.25,"NET 15",null,"\t031548"]
["D00","ZDST","Arthrex Distributor",511144,90621405,30,"02/02/2016","D005R-160202-11897","AR-8950-03","COUNTERSINK 3.5/ 4.0 MM","Distal Extremities","Instruments","Device Specific Instruments","Midfoot Instruments","CFS",1,52.5,52.5,"NET 15",null,"\t021535"]
["D00","ZDST","Arthrex Distributor",511144,90621405,40,"02/02/2016","D005R-160202-11897","AR-8916-18","1.7MM DRILL SLEEVE, F/2.4MM HOLE","Distal Extremities","Instruments","Hand & Wrist","Distal Radius","Other",1,15.75,15.75,"NET 15",null,"\t051538"]
["D00","ZDST","Arthrex Distributor",511144,90621405,50,"02/02/2016","D005R-160202-11897","AR-8737-47","PROFILE DRILL, MINI CMP FT","Distal Extremities","Instruments","Device Specific Instruments","Compression Screws","Metal Compression Screws",2,52.5,105,"NET 15",null,"\t031542"]
["D00","CR","Arthrex Credit Memo",60024273,90621406,10,"02/02/2016","FEB INST CR","AR-8916-06","2.5MM DRILL BIT, CALIBRATED","Distal Extremities","Instruments","Hand & Wrist","Distal Radius","Other",-1,23.8,-23.8,"NET 15",null,"\t1391534"]
["D00","CR","Arthrex Credit Memo",60024273,90621406,20,"02/02/2016","FEB INST CR","AR-8916-18","1.7MM DRILL SLEEVE, F/2.4MM HOLE","Distal Extremities","Instruments","Hand & Wrist","Distal Radius","Other",-1,15.75,-15.75,"NET 15",null,"\t051534"]
["D00","CR","Arthrex Credit Memo",60024273,90621406,30,"02/02/2016","FEB INST CR","UPC-R81MD","PAPR&RIBBON PACK F/SONY UP-DR80MD,","Imaging & Resection","Equipment","Video","Accessories","Printers",-14,69.650000000000006,-975.1,"NET 15"]
["D00","CR","Arthrex Credit Memo",60024331,90621407,10,"02/02/2016","JAN FRT CREDIT","FREIGHT","Freight","Other","Other","Other","Other","Other",-1,0,0,"NET 15"]
["D00","ZDST","Arthrex Distributor",514025,90625253,10,{"$f":"TEXT(\"2/3/2016\",\"mm/dd/yyyy\")","v":"02/03/2016"},"D005R-160126-28462","AR-13970SR","KINGFIR SUTR RETVR TISS GRSPR W/SR","Shoulder","Instruments","Hand Instruments","Graspers & Retrievers","Other",2,523.25,1046.5,"NET 15",null,"\t72850"]
["D00","ZDST","Arthrex Distributor",514025,90625253,20,"02/03/2016","D005R-160126-28462","AR-8933G","DRILL GUIDE, 1.1 / 2.0 MM","Distal Extremities","Instruments","Device Specific Instruments","Forefoot Instruments","MTP",1,99.75,99.75,"NET 15",null,"\t051526"]
["D00","ZDST","Arthrex Distributor",514025,90625253,30,"02/03/2016","D005R-160126-28462","AR-8943-36","DRILL BIT, 3.0MM","Distal Extremities","Instruments","Device Specific Instruments","Hindfoot & Ankle","Ankle Fracture",6,40.25,241.5,"NET 15",null,"\t1391531"]
["D00","CR","Arthrex Credit Memo",60024413,90625254,10,"02/03/2016","FEB INST CR","AR-4160-35","DRILL BIT, 3.5 MM","Distal Extremities","Instruments","Device Specific Instruments","Forefoot Instruments","TRIMit",-1,19.75,-19.75,"NET 15",null,"\t041403"]
["D00","CR","Arthrex Credit Memo",60024413,90625254,20,"02/03/2016","FEB INST CR","AR-4160-35","DRILL BIT, 3.5 MM","Distal Extremities","Instruments","Device Specific Instruments","Forefoot Instruments","TRIMit",-1,19.75,-19.75,"NET 15",null,"\t041403"]
["D00","CR","Arthrex Credit Memo",60024413,90625254,30,"02/03/2016","FEB INST CR","AR-8737-34","2.0MM DRILL BIT, CMP FT, CALIBRATED","Distal Extremities","Instruments","Device Specific Instruments","Compression Screws","Metal Compression Screws",-1,68.25,-68.25,"NET 15",null,"\t021429"]
["D00","CR","Arthrex Credit Memo",60024413,90625254,40,"02/03/2016","FEB INST CR","AR-8943-16","2.0MM DRILL BIT, CALIBRATED","Distal Extremities","Instruments","Device Specific Instruments","Hindfoot & Ankle","Ankle Fracture",-1,33.25,-33.25,"NET 15",null,"\t041423"]
["D00","CR","Arthrex Credit Memo",60024413,90625254,50,"02/03/2016","FEB INST CR","AR-8943-16","2.0MM DRILL BIT, CALIBRATED","Distal Extremities","Instruments","Device Specific Instruments","Hindfoot & Ankle","Ankle Fracture",-1,33.25,-33.25,"NET 15",null,"\t031536"]
["D00","CR","Arthrex Credit Memo",60024413,90625254,60,"02/03/2016","FEB INST CR","AR-8943-30","2.5MM DRILL BIT","Distal Extremities","Instruments","Device Specific Instruments","Hindfoot & Ankle","Ankle Fracture",-1,29.75,-29.75,"NET 15",null,"\t4751525"]
["D00","CR","Arthrex Credit Memo",60024413,90625254,70,"02/03/2016","FEB INST CR","AR-8943-36","DRILL BIT, 3.0MM","Distal Extremities","Instruments","Device Specific Instruments","Hindfoot & Ankle","Ankle Fracture",-1,40.25,-40.25,"NET 15",null,"\t4751523"]
["D00","CR","Arthrex Credit Memo",60024413,90625254,80,"02/03/2016","FEB INST CR","AR-8943-42","2.5MM DRILL BIT, CALIBRATED","Distal Extremities","Instruments","Device Specific Instruments","Hindfoot & Ankle","Ankle Fracture",-1,29.75,-29.75,"NET 15",null,"\t031534"]
["D00","CR","Arthrex Credit Memo",60024413,90625254,90,"02/03/2016","FEB INST CR","AR-8943-42","2.5MM DRILL BIT, CALIBRATED","Distal Extremities","Instruments","Device Specific Instruments","Hindfoot & Ankle","Ankle Fracture",-1,29.75,-29.75,"NET 15",null,"\t031444"]
["D00","CR","Arthrex Credit Memo",60024413,90625254,100,"02/03/2016","FEB INST CR","AR-8943-42","2.5MM DRILL BIT, CALIBRATED","Distal Extremities","Instruments","Device Specific Instruments","Hindfoot & Ankle","Ankle Fracture",-1,29.75,-29.75,"NET 15",null,"\t021546"]
["D00","DR","Arthrex Debit Memo",70004468,90625255,10,"02/03/2016","JAN PRO998","MISC DISTAL EXTREM","DISTAL EXTREMITY ITEM","Distal Extremities","Implants","Anchors","SPEEDBRIDGE","Other",1,212.5,212.5,"NET 15"]
["D00","DR","Arthrex Debit Memo",70004468,90625255,20,"02/03/2016","JAN PRO998","MISC KNEE HIP","KNEE & HIP TEAM","Knee & Hip","Implants","Patellofemoral","MPFL","Other",1,39.5,39.5,"NET 15"]
["D00","DR","Arthrex Debit Memo",70004468,90625255,30,"02/03/2016","JAN PRO998","MISC SHOULDER","SHOULDER ITEM","Shoulder","Implants","Other","Other","Other",1,15.5,15.5,"NET 15"]
["D00","CR","Arthrex Credit Memo",60024638,90628848,10,{"$f":"TEXT(\"2/4/2016\",\"mm/dd/yyyy\")","v":"02/04/2016"},"FEB INST CR","AR-8827D-01","DRILL BIT, 2.7MM","Distal Extremities","Instruments","Device Specific Instruments","Hindfoot & Ankle","Ankle Fracture",-1,29.75,-29.75,"NET 15",null,"\t041430"]
["D00","CR","Arthrex Credit Memo",60024638,90628848,20,"02/04/2016","FEB INST CR","AR-8943-16","2.0MM DRILL BIT, CALIBRATED","Distal Extremities","Instruments","Device Specific Instruments","Hindfoot & Ankle","Ankle Fracture",-1,33.25,-33.25,"NET 15",null,"\t031536"]
["D00","CR","Arthrex Credit Memo",60024638,90628848,30,"02/04/2016","FEB INST CR","AR-8943-30","2.5MM DRILL BIT","Distal Extremities","Instruments","Device Specific Instruments","Hindfoot & Ankle","Ankle Fracture",-1,29.75,-29.75,"NET 15",null,"\t1391533"]
["D00","CR","Arthrex Credit Memo",60024638,90628848,40,"02/04/2016","FEB INST CR","AR-8943-36","DRILL BIT, 3.0MM","Distal Extremities","Instruments","Device Specific Instruments","Hindfoot & Ankle","Ankle Fracture",-1,40.25,-40.25,"NET 15",null,"\t1391531"]
["D00","CR","Arthrex Credit Memo",60024638,90628848,50,"02/04/2016","FEB INST CR","AR-8943-42","2.5MM DRILL BIT, CALIBRATED","Distal Extremities","Instruments","Device Specific Instruments","Hindfoot & Ankle","Ankle Fracture",-1,29.75,-29.75,"NET 15",null,"\t031534"]
["D00","CR","Arthrex Credit Memo",60024638,90628848,60,"02/04/2016","FEB INST CR","UPC-R81MD","PAPR&RIBBON PACK F/SONY UP-DR80MD,","Imaging & Resection","Equipment","Video","Accessories","Printers",-14,149.25,-2089.5,"NET 15"]
["D00","ZDST","Arthrex Distributor",511144,90632622,60,{"$f":"TEXT(\"2/5/2016\",\"mm/dd/yyyy\")","v":"02/05/2016"},"D005R-160202-11897","AR-8737-34","2.0MM DRILL BIT, CMP FT, CALIBRATED","Distal Extremities","Instruments","Device Specific Instruments","Compression Screws","Metal Compression Screws",3,68.25,204.75,"NET 15",null,"\t021605"]
["D00","CR","Arthrex Credit Memo",60025020,90636567,10,{"$f":"TEXT(\"2/8/2016\",\"mm/dd/yyyy\")","v":"02/08/2016"},"FEB INST CREDIT","AR-8916-06","2.5MM DRILL BIT, CALIBRATED","Distal Extremities","Instruments","Hand & Wrist","Distal Radius","Other",-1,23.8,-23.8,"NET 15",null,"\t1391534"]
["D00","CR","Arthrex Credit Memo",60025020,90636567,20,{"$f":"TEXT(\"2/8/2016\",\"mm/dd/yyyy\")","v":"02/08/2016"},"FEB INST CREDIT","AR-8943-36","DRILL BIT, 3.0MM","Distal Extremities","Instruments","Device Specific Instruments","Hindfoot & Ankle","Ankle Fracture",-1,40.25,-40.25,"NET 15",null,"\t1391531"]
["D00","ZDST","Arthrex Distributor",522847,90644444,10,{"$f":"TEXT(\"2/10/2016\",\"mm/dd/yyyy\")","v":"02/10/2016"},"D005R-160208-33125",89530738,"WOLF ADAPTER","Imaging & Resection","Equipment","Video","Accessories","Other",2,2.8,5.6,"NET 15",null,"\t10024767"]
["D00","ZDST","Arthrex Distributor",522847,90644444,11,"02/10/2016","D005R-160208-33125",89530738,"WOLF ADAPTER","Imaging & Resection","Equipment","Video","Accessories","Other",18,2.8,50.4,"NET 15",null,"\t10024767"]
["D00","ZDST","Arthrex Distributor",528324,90644445,10,"02/10/2016","D005R-160210-09613","AR-13210","HOHMANN RETRACTOR, 8.0 MM X 16 CM","Distal Extremities","Instruments","Device Specific Instruments","Forefoot Instruments","POW",1,22.05,22.05,"NET 15",null,"\t1489153203"]
["D00","ZDST","Arthrex Distributor",528324,90644445,20,"02/10/2016","D005R-160210-09613","AR-8943-17","DRL GD,THRDED,LO-PRO,2.7 MM","Distal Extremities","Instruments","Device Specific Instruments","Hindfoot & Ankle","Ankle Fracture",2,140,280,"NET 15",null,"\t021429"]
["D00","ZDST","Arthrex Distributor",528324,90644445,30,"02/10/2016","D005R-160210-09613","AR-8943-22","HOHMANN RETRACTOR, 15MM","Distal Extremities","Instruments","Device Specific Instruments","Hindfoot & Ankle","Ankle Fracture",1,22.75,22.75,"NET 15",null,"\t6671543"]
["D00","ZDST","Arthrex Distributor",528324,90644445,40,"02/10/2016","D005R-160210-09613","AR-8944DH","DRIVER, T10 HEXALOBE","Distal Extremities","Instruments","Device Specific Instruments","Forefoot Instruments","MTP",1,42,42,"NET 15",null,"\t1391533"]
["D00","ZDST","Arthrex Distributor",528324,90644445,50,"02/10/2016","D005R-160210-09613","AR-8941DH","T15 HEXALOBE DRIVER","Distal Extremities","Instruments","Device Specific Instruments","Midfoot Instruments","Other",1,38.5,38.5,"NET 15",null,"\t1391544"]
["D00","ZDST","Arthrex Distributor",528324,90644445,60,"02/10/2016","D005R-160210-09613","AR-4160-35","DRILL BIT, 3.5 MM","Distal Extremities","Instruments","Device Specific Instruments","Forefoot Instruments","TRIMit",1,19.75,19.75,"NET 15",null,"\t031537"]
["D00","ZDST","Arthrex Distributor",528324,90644445,70,"02/10/2016","D005R-160210-09613","AR-8943-42","2.5MM DRILL BIT, CALIBRATED","Distal Extremities","Instruments","Device Specific Instruments","Hindfoot & Ankle","Ankle Fracture",2,29.75,59.5,"NET 15",null,"\t021551"]
["D00","ZDST","Arthrex Distributor",528324,90644445,80,"02/10/2016","D005R-160210-09613","AR-8943-16","2.0MM DRILL BIT, CALIBRATED","Distal Extremities","Instruments","Device Specific Instruments","Hindfoot & Ankle","Ankle Fracture",1,33.25,33.25,"NET 15",null,"\t031544"]
["D00","ZDST","Arthrex Distributor",528324,90644445,90,"02/10/2016","D005R-160210-09613","AR-8916-06","2.5MM DRILL BIT, CALIBRATED","Distal Extremities","Instruments","Hand & Wrist","Distal Radius","Other",1,23.8,23.8,"NET 15",null,"\t1391605"]
["D00","ZDST","Arthrex Distributor",528324,90644445,100,"02/10/2016","D005R-160210-09613","AR-8737-34","2.0MM DRILL BIT, CMP FT, CALIBRATED","Distal Extremities","Instruments","Device Specific Instruments","Compression Screws","Metal Compression Screws",1,68.25,68.25,"NET 15",null,"\t021605"]
["D00","ZDST","Arthrex Distributor",528324,90644445,110,"02/10/2016","D005R-160210-09613","AR-8737-46","PROFILE DRILL MICRO CMP FT","Distal Extremities","Instruments","Device Specific Instruments","Compression Screws","Metal Compression Screws",1,52.5,52.5,"NET 15",null,"\t021552"]
["D00","ZDST","Arthrex Distributor",528629,90644446,10,"02/10/2016","D005R-160210-23801","AR-8950RH","HANDLE, QC, RATCHETING, CANNULATED","Distal Extremities","Instruments","Device Specific Instruments","Midfoot Instruments","CFS",1,348.25,348.25,"NET 15",null,"\t78421602"]
["D00","CR","Arthrex Credit Memo",60025319,90644447,10,"02/10/2016","FEB INST CREDIT","AR-2752","STEP DRILL FOR 2.5MM FRAGMENT SCREW","Shoulder","Instruments","Other Instruments","Clavicle Fracture","Other",-1,36.75,-36.75,"NET 15",null,"\t031349"]
["D00","CR","Arthrex Credit Memo",60025319,90644447,20,"02/10/2016","FEB INST CREDIT","AR-4160-35","DRILL BIT, 3.5 MM","Distal Extremities","Instruments","Device Specific Instruments","Forefoot Instruments","TRIMit",-1,19.75,-19.75,"NET 15",null,"\t031535"]
["D00","CR","Arthrex Credit Memo",60025319,90644447,30,"02/10/2016","FEB INST CREDIT","AR-8827D-01","DRILL BIT, 2.7MM","Distal Extremities","Instruments","Device Specific Instruments","Hindfoot & Ankle","Ankle Fracture",-1,29.75,-29.75,"NET 15",null,"\t041351"]
["D00","CR","Arthrex Credit Memo",60025319,90644447,40,"02/10/2016","FEB INST CREDIT","AR-8827D-01","DRILL BIT, 2.7MM","Distal Extremities","Instruments","Device Specific Instruments","Hindfoot & Ankle","Ankle Fracture",-1,29.75,-29.75,"NET 15",null,"\t041515"]
["D00","CR","Arthrex Credit Memo",60025319,90644447,50,"02/10/2016","FEB INST CREDIT","AR-8827D-01","DRILL BIT, 2.7MM","Distal Extremities","Instruments","Device Specific Instruments","Hindfoot & Ankle","Ankle Fracture",-1,29.75,-29.75,"NET 15",null,"\t041502"]
["D00","CR","Arthrex Credit Memo",60025319,90644447,60,"02/10/2016","FEB INST CREDIT","AR-8916-06","2.5MM DRILL BIT, CALIBRATED","Distal Extremities","Instruments","Hand & Wrist","Distal Radius","Other",-1,23.8,-23.8,"NET 15",null,"\t1391534"]
["D00","CR","Arthrex Credit Memo",60025319,90644447,70,"02/10/2016","FEB INST CREDIT","AR-8943-02","DRILL BIT, CANNULATED, 2.6MM","Distal Extremities","Instruments","Device Specific Instruments","Hindfoot & Ankle","Ankle Fracture",-1,61.25,-61.25,"NET 15",null,"\t041238"]
["D00","CR","Arthrex Credit Memo",60025319,90644447,80,"02/10/2016","FEB INST CREDIT","AR-8943-13","2.5MM DRILL BIT, CALIBRATED","Distal Extremities","Instruments","Device Specific Instruments","Hindfoot & Ankle","Ankle Fracture",-1,29.75,-29.75,"NET 15",null,"\t041522"]
["D00","CR","Arthrex Credit Memo",60025319,90644447,90,"02/10/2016","FEB INST CREDIT","AR-8943-16","2.0MM DRILL BIT, CALIBRATED","Distal Extremities","Instruments","Device Specific Instruments","Hindfoot & Ankle","Ankle Fracture",-1,33.25,-33.25,"NET 15",null,"\t031542"]
["D00","CR","Arthrex Credit Memo",60025319,90644447,100,"02/10/2016","FEB INST CREDIT","AR-8943-16","2.0MM DRILL BIT, CALIBRATED","Distal Extremities","Instruments","Device Specific Instruments","Hindfoot & Ankle","Ankle Fracture",-1,33.25,-33.25,"NET 15",null,"\t041427"]
["D00","CR","Arthrex Credit Memo",60025319,90644447,110,"02/10/2016","FEB INST CREDIT","AR-8943-16","2.0MM DRILL BIT, CALIBRATED","Distal Extremities","Instruments","Device Specific Instruments","Hindfoot & Ankle","Ankle Fracture",-1,33.25,-33.25,"NET 15",null,"\t031542"]
["D00","CR","Arthrex Credit Memo",60025319,90644447,120,"02/10/2016","FEB INST CREDIT","AR-8943-30","2.5MM DRILL BIT","Distal Extremities","Instruments","Device Specific Instruments","Hindfoot & Ankle","Ankle Fracture",-1,29.75,-29.75,"NET 15",null,"\t1391535"]
["D00","CR","Arthrex Credit Memo",60025319,90644447,130,"02/10/2016","FEB INST CREDIT","AR-8943-30","2.5MM DRILL BIT","Distal Extremities","Instruments","Device Specific Instruments","Hindfoot & Ankle","Ankle Fracture",-1,29.75,-29.75,"NET 15",null,"\t1391539"]
["D00","CR","Arthrex Credit Memo",60025319,90644447,140,"02/10/2016","FEB INST CREDIT","AR-8943-42","2.5MM DRILL BIT, CALIBRATED","Distal Extremities","Instruments","Device Specific Instruments","Hindfoot & Ankle","Ankle Fracture",-1,29.75,-29.75,"NET 15",null,"\t031425"]
["D00","CR","Arthrex Credit Memo",60025319,90644447,150,"02/10/2016","FEB INST CREDIT","AR-8943-42","2.5MM DRILL BIT, CALIBRATED","Distal Extremities","Instruments","Device Specific Instruments","Hindfoot & Ankle","Ankle Fracture",-1,29.75,-29.75,"NET 15",null,"\t031534"]
["D00","CR","Arthrex Credit Memo",60025319,90644447,160,"02/10/2016","FEB INST CREDIT","AR-8944-22","DRILL BIT, 2.0MM (AO)","Distal Extremities","Instruments","Device Specific Instruments","Forefoot Instruments","MTP",-1,29.75,-29.75,"NET 15",null,"\t031544"]
["D00","CR","Arthrex Credit Memo",60025319,90644447,170,"02/10/2016","FEB INST CREDIT","AR-8950-03","COUNTERSINK 3.5/ 4.0 MM","Distal Extremities","Instruments","Device Specific Instruments","Midfoot Instruments","CFS",-1,52.5,-52.5,"NET 15",null,"\t021328"]
["D00","ZDST","Arthrex Distributor",532154,90648160,10,{"$f":"TEXT(\"2/11/2016\",\"mm/dd/yyyy\")","v":"02/11/2016"},"D005R-160211-05839","AR-8916-23","2.5/1.7MM DRILL GUIDE","Distal Extremities","Instruments","Hand & Wrist","Distal Radius","Other",1,144.9,144.9,"NET 15",null,"\t021449"]
["D00","ZDST","Arthrex Distributor",532931,90648161,10,{"$f":"TEXT(\"2/11/2016\",\"mm/dd/yyyy\")","v":"02/11/2016"},"021116JD","AR-9215-1-02","GLENOID DRILL GUIDE HANDLE, LONG","Arthroplasty","Instruments","Shoulder Arthroplasty & Fracture","Univers","Other",2,70,140,"NET 15",null,"\t4461528"]
["D00","ZDST","Arthrex Distributor",532931,90648161,20,{"$f":"TEXT(\"2/11/2016\",\"mm/dd/yyyy\")","v":"02/11/2016"},"021116JD","AR-9200-01R","HUMERAL RESECTION TEMPLATE, RIGHT","Arthroplasty","Instruments","Shoulder Arthroplasty & Fracture","Univers","Other",2,122.5,245,"NET 15",null,"\t021537"]
["D00","ZDST","Arthrex Distributor",532931,90648161,30,{"$f":"TEXT(\"2/11/2016\",\"mm/dd/yyyy\")","v":"02/11/2016"},"021116JD","AR-9200-01L","HUMERAL RESECTION TEMPLATE, LEFT","Arthroplasty","Instruments","Shoulder Arthroplasty & Fracture","Univers","Other",2,122.5,245,"NET 15",null,"\t021537"]
["D00","ZDST","Arthrex Distributor",532221,90649097,10,{"$f":"TEXT(\"2/11/2016\",\"mm/dd/yyyy\")","v":"02/11/2016"},"D005R-160211-21910","AR-1510C","RETROCON DRL GD SYS INSRT CS","Knee & Hip","Instruments","Reusable Instruments","ACL","Other",1,244.65,244.65,"NET 15",null,"\t17882.001"]
["D00","ZLN","Arthrex Loaner Order",533554,90652184,10,{"$f":"TEXT(\"2/12/2016\",\"mm/dd/yyyy\")","v":"02/12/2016"},"021116JP","RAR-2180S","SERIES I HAND INSTRUMENT SET LOANER","Other","Other","Rental Charges","Other","Other",1,0,0,"NET 15","\t4","NB"]
["D00","ZDST","Arthrex Distributor",524941,90656025,10,{"$f":"TEXT(\"2/15/2016\",\"mm/dd/yyyy\")","v":"02/15/2016"},"D005R-160209-89385","DS-205","COMPRESSION FT DEMO BLOCK","Other","Other","Promo Items","Other","Other",2,10,20,"NET 15",null,"\t000000"]
["D00","CR","Arthrex Credit Memo",60025816,90656026,10,{"$f":"TEXT(\"2/15/2016\",\"mm/dd/yyyy\")","v":"02/15/2016"},"FEB INST CREDIT","AR-8916-06","2.5MM DRILL BIT, CALIBRATED","Distal Extremities","Instruments","Hand & Wrist","Distal Radius","Other",-1,23.8,-23.8,"NET 15",null,"\t1391538"]
["D00","CR","Arthrex Credit Memo",60025938,90659854,10,{"$f":"TEXT(\"2/16/2016\",\"mm/dd/yyyy\")","v":"02/16/2016"},"FEB INST CREDIT","AR-8970-40C","CANNULATED DRILL BIT, 4.0MM","Distal Extremities","Instruments","Device Specific Instruments","Hindfoot & Ankle","Ankle Fusion",-1,68.25,-68.25,"NET 15",null,"\t041442"]
["D00","ZDST","Arthrex Distributor",531965,90663994,10,{"$f":"TEXT(\"2/17/2016\",\"mm/dd/yyyy\")","v":"02/17/2016"},"D005R-160211-22720","AR-3240-5040","FUSED LHT GD,WOLF,5MMX 406CM 13.4","Imaging & Resection","Equipment","Video","Accessories","Light Guides",1,174.65,174.65,"NET 15",null,"WO131898"]
["D00","ZDST","Arthrex Distributor",544088,90663995,10,"02/17/2016","D005R-160212-05582","AR-8943-02","DRILL BIT, CANNULATED, 2.6MM","Distal Extremities","Instruments","Device Specific Instruments","Hindfoot & Ankle","Ankle Fracture",6,61.25,367.5,"NET 15",null,"\t031547"]
["D00","ZDST","Arthrex Distributor",544088,90663995,20,"02/17/2016","D005R-160212-05582","AR-8943-03","DRILL GUIDE, 2.6/1.35MM","Distal Extremities","Instruments","Device Specific Instruments","Hindfoot & Ankle","Ankle Fracture",1,99.75,99.75,"NET 15",null,"\t1391604"]
["D00","ZDST","Arthrex Distributor",544088,90663995,30,"02/17/2016","D005R-160212-05582","AR-8943-30","2.5MM DRILL BIT","Distal Extremities","Instruments","Device Specific Instruments","Hindfoot & Ankle","Ankle Fracture",10,29.75,297.5,"NET 15",null,"\t1391606"]
["D00","ZDST","Arthrex Distributor",544088,90663995,40,"02/17/2016","D005R-160212-05582","AR-8943-42","2.5MM DRILL BIT, CALIBRATED","Distal Extremities","Instruments","Device Specific Instruments","Hindfoot & Ankle","Ankle Fracture",10,29.75,297.5,"NET 15",null,"\t021552"]
["D00","ZDST","Arthrex Distributor",544088,90663995,50,"02/17/2016","D005R-160212-05582","AR-8827D-01","DRILL BIT, 2.7MM","Distal Extremities","Instruments","Device Specific Instruments","Hindfoot & Ankle","Ankle Fracture",2,29.75,59.5,"NET 15",null,"\t031544"]
["D00","ZDST","Arthrex Distributor",544088,90663995,60,"02/17/2016","D005R-160212-05582","AR-8916-06","2.5MM DRILL BIT, CALIBRATED","Distal Extremities","Instruments","Hand & Wrist","Distal Radius","Other",6,23.8,142.80000000000001,"NET 15",null,"\t1391605"]
["D00","ZDST","Arthrex Distributor",544088,90663995,70,"02/17/2016","D005R-160212-05582","AR-8916-18","1.7MM DRILL SLEEVE, F/2.4MM HOLE","Distal Extremities","Instruments","Hand & Wrist","Distal Radius","Other",10,15.75,157.5,"NET 15",null,"\t051543"]
["D00","ZLN","Arthrex Loaner Order",545829,90663996,10,"02/17/2016","21716JL","RAR-8850S","C-LINE ENDOSCOPIC CARPAL TUNL LNR S","Other","Other","Rental Charges","Other","Other",1,0,0,"NET 15","\t07","NB"]
["D00","ZLN","Arthrex Loaner Order",545829,90663996,20,"02/17/2016","21716JL","RF-8850S","RENTAL FEE FOR CENTER- LINE LOANER","Other","Other","Rental Charges","Distal Extremities","Other",1,200,200,"NET 15"]
["D00","CR","Arthrex Credit Memo",60026058,90663997,10,"02/17/2016","FEB INST CREDIT","AR-4160-35","DRILL BIT, 3.5 MM","Distal Extremities","Instruments","Device Specific Instruments","Forefoot Instruments","TRIMit",-1,19.75,-19.75,"NET 15",null,"\t031536"]
["D00","CR","Arthrex Credit Memo",60026058,90663997,20,"02/17/2016","FEB INST CREDIT","AR-8737-34","2.0MM DRILL BIT, CMP FT, CALIBRATED","Distal Extremities","Instruments","Device Specific Instruments","Compression Screws","Metal Compression Screws",-1,68.25,-68.25,"NET 15",null,"\t031544"]
["D00","CR","Arthrex Credit Memo",60026058,90663997,30,"02/17/2016","FEB INST CREDIT","AR-8737-34","2.0MM DRILL BIT, CMP FT, CALIBRATED","Distal Extremities","Instruments","Device Specific Instruments","Compression Screws","Metal Compression Screws",-1,68.25,-68.25,"NET 15",null,"\t031544"]
["D00","CR","Arthrex Credit Memo",60026058,90663997,40,"02/17/2016","FEB INST CREDIT","AR-8737-35","2.7MM DRILL BIT, CMP FT, CALIBRATED","Distal Extremities","Instruments","Device Specific Instruments","Compression Screws","Metal Compression Screws",-1,68.25,-68.25,"NET 15",null,"\t031542"]
["D00","CR","Arthrex Credit Memo",60026058,90663997,50,"02/17/2016","FEB INST CREDIT","AR-8737-46","PROFILE DRILL MICRO CMP FT","Distal Extremities","Instruments","Device Specific Instruments","Compression Screws","Metal Compression Screws",-1,52.5,-52.5,"NET 15",null,"\t031540"]
["D00","CR","Arthrex Credit Memo",60026058,90663997,60,"02/17/2016","FEB INST CREDIT","AR-8916-06","2.5MM DRILL BIT, CALIBRATED","Distal Extremities","Instruments","Hand & Wrist","Distal Radius","Other",-1,23.8,-23.8,"NET 15",null,"\t4751523"]
["D00","CR","Arthrex Credit Memo",60026058,90663997,70,"02/17/2016","FEB INST CREDIT","AR-8916-06","2.5MM DRILL BIT, CALIBRATED","Distal Extremities","Instruments","Hand & Wrist","Distal Radius","Other",-1,23.8,-23.8,"NET 15",null,"\t1391532"]
["D00","CR","Arthrex Credit Memo",60026058,90663997,80,"02/17/2016","FEB INST CREDIT","AR-8916-06","2.5MM DRILL BIT, CALIBRATED","Distal Extremities","Instruments","Hand & Wrist","Distal Radius","Other",-1,23.8,-23.8,"NET 15",null,"\t1391538"]
["D00","CR","Arthrex Credit Memo",60026058,90663997,90,"02/17/2016","FEB INST CREDIT","AR-8916-06","2.5MM DRILL BIT, CALIBRATED","Distal Extremities","Instruments","Hand & Wrist","Distal Radius","Other",-1,23.8,-23.8,"NET 15",null,"\t1391538"]
["D00","CR","Arthrex Credit Memo",60026058,90663997,100,"02/17/2016","FEB INST CREDIT","AR-8943-13","2.5MM DRILL BIT, CALIBRATED","Distal Extremities","Instruments","Device Specific Instruments","Hindfoot & Ankle","Ankle Fracture",-1,29.75,-29.75,"NET 15",null,"\t041528"]
["D00","CR","Arthrex Credit Memo",60026058,90663997,110,"02/17/2016","FEB INST CREDIT","AR-8943-16","2.0MM DRILL BIT, CALIBRATED","Distal Extremities","Instruments","Device Specific Instruments","Hindfoot & Ankle","Ankle Fracture",-1,33.25,-33.25,"NET 15",null,"\t031536"]
["D00","CR","Arthrex Credit Memo",60026058,90663997,120,"02/17/2016","FEB INST CREDIT","AR-8943-30","2.5MM DRILL BIT","Distal Extremities","Instruments","Device Specific Instruments","Hindfoot & Ankle","Ankle Fracture",-1,29.75,-29.75,"NET 15",null,"\t1391535"]
["D00","CR","Arthrex Credit Memo",60026058,90663997,130,"02/17/2016","FEB INST CREDIT","AR-8943-36","DRILL BIT, 3.0MM","Distal Extremities","Instruments","Device Specific Instruments","Hindfoot & Ankle","Ankle Fracture",-1,40.25,-40.25,"NET 15",null,"\t1391531"]
["D00","CR","Arthrex Credit Memo",60026058,90663997,140,"02/17/2016","FEB INST CREDIT","AR-8943-42","2.5MM DRILL BIT, CALIBRATED","Distal Extremities","Instruments","Device Specific Instruments","Hindfoot & Ankle","Ankle Fracture",-1,29.75,-29.75,"NET 15",null,"\t021546"]
["D00","CR","Arthrex Credit Memo",60026058,90663997,150,"02/17/2016","FEB INST CREDIT","AR-8943-42","2.5MM DRILL BIT, CALIBRATED","Distal Extremities","Instruments","Device Specific Instruments","Hindfoot & Ankle","Ankle Fracture",-1,29.75,-29.75,"NET 15",null,"\t031545"]
["D00","CR","Arthrex Credit Memo",60026058,90663997,160,"02/17/2016","FEB INST CREDIT","AR-8943-42","2.5MM DRILL BIT, CALIBRATED","Distal Extremities","Instruments","Device Specific Instruments","Hindfoot & Ankle","Ankle Fracture",-1,29.75,-29.75,"NET 15",null,"\t031534"]
["D00","CR","Arthrex Credit Memo",60026058,90663997,170,"02/17/2016","FEB INST CREDIT","AR-8943-42","2.5MM DRILL BIT, CALIBRATED","Distal Extremities","Instruments","Device Specific Instruments","Hindfoot & Ankle","Ankle Fracture",-1,29.75,-29.75,"NET 15",null,"\t031534"]
["D00","CR","Arthrex Credit Memo",60026058,90663997,180,"02/17/2016","FEB INST CREDIT","AR-8945-30C","CANNULATED DRILL BIT, 3.0MM","Distal Extremities","Instruments","Device Specific Instruments","Screws","4.5/5.5/6.7 Screws",-1,61.25,-61.25,"NET 15",null,"\t031539"]
["D00","CR","Arthrex Credit Memo",60026058,90663997,190,"02/17/2016","FEB INST CREDIT","AR-8956C-45T","BONE TAP, CANNULATED, 4.5MM","Distal Extremities","Instruments","Device Specific Instruments","Midfoot Instruments","Jones Fracture",-1,61.25,-61.25,"NET 15",null,"\t031547"]
["D00","ZBKE","Arthrex Consig Issue",544858,90664003,10,"02/17/2016","EXPIRED PRODUCT","AR-1390C","BIO-COMP INTERFSCRW W/DISP SHTH","Knee & Hip","Implants","Interference Screws","Composite Screws","23 mm",2,44.65,89.3,"NET 15",null,"\t1143582"]
["D00","ZBKE","Arthrex Consig Issue",544858,90664003,40,"02/17/2016","EXPIRED PRODUCT","AR-1662BC-8","SWVLK TENO BIO-COMP 8X 19.5MM","Shoulder","Implants","Other","Biceps Repair","SwiveLock Tenodesis",3,82.65,247.95,"NET 15",null,"\t1139861"]
["D00","ZBKE","Arthrex Consig Issue",544858,90664003,50,"02/17/2016","EXPIRED PRODUCT","AR-1923BCH","SUTR ANCH HIP BIO-COMP P-LCK 2.9X 1","Knee & Hip","Implants","Hip","PushLocks","Other",5,76,380,"NET 15",null,"\t1139993"]
["D00","ZBKE","Arthrex Consig Issue",544858,90664003,60,"02/17/2016","EXPIRED PRODUCT","AR-1927BCNF","BIO-COMP CRKSCRW FT VENT 5.5X14.7MM","Shoulder","Implants","Corkscrews","Composite Anchors","5.5mm",3,63.65,190.95,"NET 15",null,"\t1140095"]
["D00","ZBKE","Arthrex Consig Issue",544858,90664003,70,"02/17/2016","EXPIRED PRODUCT","AR-1927BF-3","SUTR ANCH,BIOCRKSCRW FT,TRI-PLAY","Shoulder","Implants","Corkscrews","Bio Anchors","5.5mm",1,57,57,"NET 15",null,"\t1185676"]
["D00","ZBKE","Arthrex Consig Issue",544858,90664003,80,"02/17/2016","EXPIRED PRODUCT","AR-2923BC","SUTR ANCH,BIO-COMP P-LCK,2.9X 12.5M","Shoulder","Implants","PushLocks","Composite Anchors","2.9mm",5,76,380,"NET 15",null,"\t1183350"]
["D00","ZBKE","Arthrex Consig Issue",544858,90664003,90,"02/17/2016","EXPIRED PRODUCT","AR-4152DS","IMPLANT SYSTEM, TRIM-IT DRILL PIN,","Distal Extremities","Implants","Forefoot Plates & Screws","TRIMit","Pins",4,39.9,159.6,"NET 15",null,"\t893605"]
["D00","ZBKE","Arthrex Consig Issue",544858,90664003,100,"02/17/2016","EXPIRED PRODUCT","AR-8825B","SUTURE ANCHOR, MINI BIO-PUSHLOCK","Distal Extremities","Implants","Anchors","PushLocks","Bio Anchors",1,68.400000000000006,68.400000000000006,"NET 15",null,"\t1139488"]
["D00","ZBKE","Arthrex Consig Issue",544858,90664003,110,"02/17/2016","EXPIRED PRODUCT","AR-8912DS","MINI TIGHTROPE FT","Distal Extremities","Implants","Tightrope","Mini Tightropes","Other",3,129.19999999999999,387.6,"NET 15",null,"\t1146765"]
["D00","ZBKE","Arthrex Consig Issue",544858,90664003,111,"02/17/2016","EXPIRED PRODUCT","AR-1390H-25","SOFT SCREW, CANNULATED","Knee & Hip","Implants","Interference Screws","Metal Screws","Other",1,18.05,18.05,"NET 15",null,"\t360577"]
["D00","ZBKE","Arthrex Consig Issue",544858,90664003,112,"02/17/2016","EXPIRED PRODUCT","AR-1406LP","REAMER, LOW PROFILE","Knee & Hip","Instruments","ACL/PCL Disposables","Reamers","Reamers",1,37.049999999999997,37.049999999999997,"NET 15",null,"\t360730"]
["D00","ZBKE","Arthrex Consig Issue",544858,90664003,120,"02/17/2016","EXPIRED PRODUCT","AR-9704A-90","OPES ASP ABLATOR 4MM 90Â°LO-PRO","Capital Equipment","Consumables","RF","MRF","Aspirating",1,33.25,33.25,"NET 15",null,"\t553514"]
["D00","ZSER","Arthrex Service Ord.",545765,90664006,10,"02/17/2016","CC82676 021616SJ","SRC-1","SYNERGY SCOPE REPAIR CHARGE","Other","Other","Repair Charges","Synergy Scope Repair","Other",1,1200,1200,"NET 15"]
["Total",null,null,null,null,null,null,null,null,null,null,null,null,null,null,null,null,{"$f":"SUBTOTAL(109,Table1[Extended Price])","v":7034.1999999999989}]